bitfinex/quotes_SOLUSD_20240809
["timestamp","ask_amount","ask_price","bid_price","bid_amount"]
[1723197597015,72.9177295,157.71,157.7,6.3411]
[1723197597247,72.9177295,157.71,157.69,15.8532]
[1723197597420,27.1,157.7,157.69,22.1946]
[1723197597621,72.1,157.7,157.69,22.1946]
[1723197600150,72.1,157.7,157.68,6.3419]
[1723197600447,27.9177295,157.71,157.69,6.3414]
[1723197600653,27.1,157.7,157.68,15.8539]
[1723197601014,27.9177295,157.71,157.68,15.8539]
[1723197601241,0.8177295,157.71,157.68,15.8539]
[1723197601448,27.9177295,157.71,157.68,15.8539]
[1723197601743,45.0,157.7,157.68,15.8539]
[1723197601958,27.1,157.69,157.68,15.8539]
[1723197602126,27.1,157.7,157.68,15.8539]
[1723197602326,27.9177295,157.71,157.68,15.8539]
[1723197602526,45.0,157.7,157.69,6.3413]
[1723197602837,27.9177295,157.71,157.7,6.3411]
[1723197602838,0.8177295,157.71,157.7,6.3411]
[1723197603032,72.9177295,157.71,157.7,6.3411]
[1723197603548,72.9177295,157.71,157.69,6.3415]
[1723197603976,72.9177295,157.71,157.69,6.3414]
[1723197604467,72.9177295,157.71,157.7,6.3411]
[1723197605777,72.9177295,157.71,157.69,6.3414]
[1723197606867,72.9177295,157.71,157.7,6.3411]
[1723197609062,79.2584295,157.71,157.65,32.4662]
[1723197609379,27.1,157.66,157.61,32.517]
[1723197609580,27.1,157.64,157.61,15.8615]
[1723197609891,27.1,157.63,157.61,15.8615]
[1723197610176,27.1,157.63,157.61,22.2061]
[1723197610673,27.1,157.62,157.61,22.2061]
[1723197610878,27.1,157.63,157.62,6.3443]
[1723197611190,45.0,157.63,157.62,6.3443]
[1723197611388,27.1,157.65,157.64,6.3435]
[1723197611558,72.1,157.65,157.63,15.8593]
[1723197611755,72.1,157.64,157.63,22.2032]
[1723197612396,72.1,157.64,157.6,15.8625]
[1723197612569,27.1,157.62,157.6,22.2075]
[1723197612775,45.0,157.61,157.6,22.2076]
[1723197613586,45.0,157.61,157.57,16.6555]
[1723197613587,72.1,157.61,157.59,6.3455]
[1723197614388,27.1,157.6,157.58,6.3459]
[1723197614695,45.0,157.61,157.58,6.3459]
[1723197614696,72.1,157.59,157.58,6.3459]
[1723197616181,72.1,157.59,157.57,22.212]
[1723197616367,27.1,157.58,157.57,15.8657]
[1723197616570,72.1,157.58,157.57,15.8657]
[1723197616871,72.1,157.58,157.57,22.212]
[1723197617272,72.1,157.58,157.55,6.3469]
[1723197617470,45.0,157.57,157.56,6.3467]
[1723197617688,27.1,157.61,157.59,6.3453]
[1723197617995,27.1,157.63,157.6,6.345]
[1723197618169,27.1,157.61,157.59,22.2086]
[1723197619088,27.1,157.61,157.6,6.3451]
[1723197620097,6.3428,157.66,157.61,6.3445]
[1723197620270,27.1,157.62,157.59,15.8631]
[1723197620474,72.1,157.61,157.59,15.8631]
[1723197621272,45.0,157.61,157.59,15.8631]
[1723197621479,27.1,157.6,157.57,6.346]
[1723197621688,72.1,157.59,157.57,6.346]
[1723197621884,72.1,157.59,157.56,6.3467]
[1723197622081,27.1,157.58,157.56,6.3467]
[1723197622413,45.0,157.57,157.55,15.8672]
[1723197623171,72.1,157.57,157.55,15.8672]
[1723197623683,45.0,157.57,157.55,15.8672]
[1723197624080,45.0,157.57,157.56,6.3467]
[1723197626603,45.0,157.57,157.56,5.8467]
[1723197627196,45.0,157.57,157.56,5.3467]
[1723197628690,45.0,157.57,157.52,47.6121]
[1723197628691,72.1,157.57,157.52,47.6121]
[1723197628889,27.1,157.55,157.53,6.3476]
[1723197629094,27.1,157.55,157.54,6.3475]
[1723197629296,72.1,157.55,157.54,6.3475]
[1723197629816,22.5303,157.54,157.45,2.51425819]
[1723197630014,27.1,157.46,157.45,2.51425819]
[1723197630299,27.1,157.46,157.42,15.8808]
[1723197630300,45.0,157.46,157.42,15.8808]
[1723197630473,27.1,157.46,157.42,15.8808]
[1723197630676,27.1,157.46,157.44,6.3513]
[1723197630900,45.0,157.45,157.42,15.8808]
[1723197631115,27.1,157.44,157.42,22.2331]
[1723197631281,45.0,157.45,157.42,15.8808]
[1723197631473,45.0,157.45,157.43,6.3519]
[1723197631881,27.1,157.48,157.42,15.8808]
[1723197632086,33.4485,157.52,157.42,15.8808]
[1723197632087,72.1,157.47,157.44,6.3513]
[1723197632283,27.1,157.46,157.43,6.3519]
[1723197632505,27.1,157.44,157.42,15.8808]
[1723197632678,27.1,157.43,157.39,6.3533]
[1723197632886,27.1,157.41,157.38,15.8848]
[1723197633096,27.1,157.4,157.38,22.2387]
[1723197633804,27.1,157.41,157.39,6.3535]
[1723197634585,27.1,157.4,157.39,6.3535]
[1723197634781,27.1,157.4,157.38,15.8848]
[1723197634999,27.1,157.44,157.38,15.8848]
[1723197635000,27.1,157.39,157.38,15.8848]
[1723197635315,45.0,157.39,157.38,15.8848]
[1723197635513,27.1,157.4,157.38,22.2387]
[1723197635678,27.1,157.42,157.38,15.8848]
[1723197636000,27.1,157.45,157.41,15.8815]
[1723197636377,27.1,157.44,157.41,15.8815]
[1723197636581,27.1,157.42,157.41,15.8815]
[1723197636812,27.1,157.43,157.41,22.2343]
[1723197637195,27.1,157.42,157.41,22.2343]
[1723197637432,27.1,157.43,157.42,6.3524]
[1723197637590,27.1,157.44,157.42,6.3524]
[1723197637789,27.1,157.43,157.41,15.8815]
[1723197638204,20.0,157.47,157.41,15.8815]
[1723197638205,27.1,157.42,157.41,15.8815]
[1723197638413,27.1,157.42,157.39,6.3536]
[1723197638613,27.1,157.41,157.39,6.3536]
[1723197639283,72.1,157.4,157.37,15.8853]
[1723197639506,27.1,157.39,157.37,22.2397]
[1723197639818,27.1,157.39,157.38,6.354]
[1723197639991,72.1,157.4,157.38,6.354]
[1723197640802,27.1,157.39,157.38,6.354]
[1723197640999,6.3521,157.43,157.39,15.8831]
[1723197641000,27.1,157.43,157.39,15.8831]
[1723197641210,26.3507,157.47,157.36,27.1]
[1723197641211,27.1,157.44,157.36,27.1]
[1723197641415,27.1,157.44,157.42,22.2333]
[1723197641612,27.1,157.45,157.42,22.2333]
[1723197641924,31.28516046,157.5,157.44,15.8781]
[1723197641925,27.1,157.47,157.44,15.8781]
[1723197642103,27.1,157.48,157.45,1.27010391]
[1723197642298,27.1,157.48,157.46,6.3507]
[1723197642816,27.1,157.47,157.44,15.8781]
[1723197643392,27.1,157.47,157.45,6.3511]
[1723197644620,27.1,157.47,157.45,6.351]
[1723197645016,27.1,157.47,157.44,22.2295]
[1723197645521,72.1,157.46,157.44,15.8781]
[1723197645901,72.1,157.46,157.44,22.2296]
[1723197646323,72.1,157.46,157.45,6.3512]
[1723197646812,27.1,157.5,157.48,6.3499]
[1723197647214,27.1,157.5,157.49,6.3496]
[1723197647727,27.1,157.51,157.48,6.35]
[1723197647926,27.1,157.53,157.49,17.14292671]
[1723197648111,27.1,157.56,157.55,6.3471]
[1723197648312,27.1,157.57,157.55,6.3471]
[1723197648630,27.1,157.6,157.56,15.8659]
[1723197648798,27.1,157.6,157.58,6.3459]
[1723197649308,27.1,157.6,157.57,6.3463]
[1723197649507,27.1,157.59,157.57,6.3463]
[1723197649697,27.1,157.61,157.58,6.3459]
[1723197650016,27.1,157.62,157.59,6.3455]
[1723197650611,27.1,157.62,157.6,6.345]
[1723197650921,53.68960882,157.68,157.59,15.8638]
[1723197650922,27.1,157.64,157.61,6.3447]
[1723197651136,27.1,157.64,157.59,15.8638]
[1723197651137,27.1,157.67,157.63,6.3436]
[1723197651623,27.1,157.64,157.59,21.4872]
[1723197651928,6.3432,157.65,157.6,6.345]
[1723197651929,34.82,157.65,157.6,6.345]
[1723197652127,34.82,157.67,157.61,1.26873452]
[1723197652457,34.82,157.67,157.63,6.3439]
[1723197653740,34.82,157.69,157.64,6.3434]
[1723197653906,34.82,157.69,157.64,6.3432]
[1723197654330,34.82,157.69,157.63,6.3439]
[1723197654539,6.3419,157.68,157.62,15.8599]
[1723197654741,34.82,157.67,157.62,22.2042]
[1723197654916,34.82,157.67,157.62,15.8599]
[1723197654917,41.1623,157.67,157.62,15.8599]
[1723197655125,45.0,157.66,157.62,15.8599]
[1723197656540,34.82,157.69,157.65,15.8577]
[1723197656749,0.8177295,157.71,157.66,6.3423]
[1723197657425,7.1585295,157.71,157.66,6.3423]
[1723197658048,0.8177295,157.71,157.68,6.3418]
[1723197658359,0.8177295,157.71,157.6,31.7243]
[1723197658360,0.8177295,157.71,157.69,1.26814374]
[1723197658519,0.8177295,157.71,157.64,31.7163]
[1723197658520,0.8177295,157.71,157.7,22.1939]
[1723197658720,0.8177295,157.71,157.7,23.46165457]
[1723197659845,34.82,157.82,157.75,15.8469]
[1723197660148,34.82,157.82,157.77,6.3382]
[1723197660439,41.1564,157.82,157.76,6.3387]
[1723197660646,34.82,157.82,157.79,6.3375]
[1723197661239,41.1556,157.84,157.78,6.3378]
[1723197661644,34.82,157.84,157.77,15.8449]
[1723197661836,41.1566,157.82,157.77,15.8449]
[1723197662349,34.82,157.78,157.68,22.7775]
[1723197662517,34.82,157.78,157.73,6.3397]
[1723197662717,34.82,157.78,157.71,15.8515]
[1723197663028,34.82,157.76,157.69,6.3411]
[1723197663237,16.3819,157.83,157.68,22.7775]
[1723197663558,6.339,157.76,157.71,15.851]
[1723197663737,79.82,157.75,157.71,15.851]
[1723197664345,86.1591,157.75,157.71,15.851]
[1723197664568,86.1591,157.75,157.7,6.3409]
[1723197664569,79.82,157.75,157.7,6.3409]
[1723197664730,79.82,157.75,157.71,6.3406]
[1723197665028,6.3395,157.74,157.68,44.9739]
[1723197665227,79.82,157.73,157.68,44.9739]
[1723197665450,79.82,157.73,157.69,6.3413]
[1723197665647,79.82,157.73,157.7,6.3409]
[1723197666042,6.6232,157.79,157.7,15.852]
[1723197666244,65.0,157.78,157.71,1.26777181]
[1723197666546,65.0,157.78,157.74,6.3394]
[1723197666757,65.0,157.78,157.74,7.60716168]
[1723197667060,106.158,157.78,157.73,15.8496]
[1723197667259,106.158,157.78,157.73,22.1894]
[1723197667556,54.82,157.78,157.74,6.3394]
[1723197667941,54.82,157.78,157.73,15.8496]
[1723197668145,34.82,157.76,157.7,15.8525]
[1723197668340,20.0,157.75,157.7,15.8525]
[1723197668536,26.3395,157.75,157.7,15.8525]
[1723197668854,51.3397,157.74,157.69,6.3415]
[1723197669056,45.0,157.74,157.7,6.341]
[1723197669842,45.0,157.74,157.71,6.3406]
[1723197670434,45.0,157.74,157.69,15.853]
[1723197671454,45.0,157.74,157.66,15.8566]
[1723197671752,34.82,157.72,157.66,15.8566]
[1723197671937,45.0,157.71,157.66,15.8566]
[1723197672135,45.0,157.71,157.66,22.1991]
[1723197672437,46.58534659,157.71,157.63,15.8597]
[1723197672637,20.0,157.7,157.6,21.3531]
[1723197672845,45.0,157.69,157.61,32.99165077]
[1723197673033,20.0,157.7,157.66,15.8566]
[1723197673234,6.3404,157.72,157.66,15.8566]
[1723197673460,99.82,157.71,157.66,15.8566]
[1723197673647,99.82,157.71,157.67,6.3422]
[1723197674972,99.82,157.71,157.66,15.8566]
[1723197675150,106.1608,157.71,157.66,22.1993]
[1723197675345,0.6342763,157.67,157.66,22.1993]
[1723197675549,0.6342763,157.67,157.66,15.8566]
[1723197675961,0.6342763,157.67,157.65,6.3431]
[1723197676157,0.6342763,157.67,157.66,6.3427]
[1723197678360,0.6342763,157.67,157.65,22.2]
[1723197678660,0.6342763,157.67,157.61,6.3444]
[1723197678661,6.343,157.66,157.61,6.3444]
[1723197678870,6.343,157.66,157.6,21.3531]
[1723197678871,45.0,157.65,157.62,6.3443]
[1723197679281,45.0,157.66,157.62,6.3443]
[1723197679659,45.0,157.66,157.63,6.3438]
[1723197680074,45.0,157.66,157.65,6.3431]
[1723197680282,0.6342763,157.67,157.66,6.3427]
[1723197680474,0.6342763,157.67,157.65,15.8572]
[1723197680475,0.6342763,157.67,157.65,22.2002]
[1723197681053,0.6342763,157.67,157.65,15.8572]
[1723197681763,0.6342763,157.67,157.65,22.2]
[1723197681977,0.6342763,157.67,157.65,15.8572]
[1723197683062,0.6342763,157.67,157.65,22.2003]
[1723197683277,0.6342763,157.67,157.66,6.3427]
[1723197684179,0.6342763,157.67,157.65,23.46834697]
[1723197684354,0.6342763,157.67,157.65,22.2]
[1723197684890,0.6342763,157.67,157.66,6.3427]
[1723197688277,0.6342763,157.67,157.65,22.2003]
[1723197688463,27.06,157.66,157.62,15.8606]
[1723197688766,0.6342763,157.67,157.62,15.8606]
[1723197688767,27.06,157.64,157.62,22.2049]
[1723197688963,27.06,157.63,157.62,15.8606]
[1723197689576,27.06,157.63,157.56,36.8896]
[1723197689773,72.06,157.62,157.56,21.0229]
[1723197689988,72.06,157.62,157.61,6.3447]
[1723197690283,27.06,157.64,157.63,6.3439]
[1723197690581,72.06,157.64,157.62,6.3442]
[1723197690785,45.0,157.63,157.62,6.3442]
[1723197691182,27.6942763,157.67,157.6,27.06]
[1723197691494,0.6342763,157.67,157.66,6.3427]
[1723197691660,45.6342763,157.67,157.65,6.343]
[1723197691859,72.6942763,157.67,157.65,6.343]
[1723197692887,45.6342763,157.67,157.65,6.343]
[1723197693067,45.6342763,157.67,157.66,7.61115932]
[1723197693068,0.6342763,157.67,157.66,7.61115932]
[1723197693381,0.6342763,157.67,157.65,6.343]
[1723197693577,0.6342763,157.67,157.64,22.2014]
[1723197693760,6.3427,157.66,157.61,22.2065]
[1723197693959,6.9766763,157.67,157.61,22.2065]
[1723197694185,6.9766763,157.67,157.58,31.729]
[1723197694186,0.6342763,157.67,157.64,6.3432]
[1723197694389,0.6342763,157.67,157.63,15.859]
[1723197694390,45.6342763,157.67,157.63,15.859]
[1723197694596,34.81,157.66,157.6,15.8626]
[1723197694796,45.0,157.65,157.6,22.2074]
[1723197695106,34.81,157.64,157.6,22.2074]
[1723197695271,0.6342763,157.61,157.6,22.2074]
[1723197695969,0.6342763,157.61,157.6,15.8626]
[1723197696166,0.6342763,157.61,157.58,6.3459]
[1723197696385,0.6342763,157.61,157.57,15.8656]
[1723197696582,34.81,157.6,157.57,15.8656]
[1723197697100,34.81,157.58,157.54,15.8687]
[1723197697310,34.81,157.56,157.5,15.8724]
[1723197697588,65.0,157.55,157.5,15.8724]
[1723197698204,34.81,157.54,157.51,6.3484]
[1723197698365,34.81,157.54,157.5,15.8724]
[1723197698366,45.0,157.53,157.5,15.8724]
[1723197698572,36.39723397,157.52,157.47,15.8759]
[1723197698783,34.81,157.5,157.47,15.8759]
[1723197699790,54.81,157.52,157.47,15.8759]
[1723197699989,45.0,157.51,157.48,6.3498]
[1723197700198,45.0,157.51,157.48,6.3499]
[1723197700576,45.0,157.51,157.49,15.8731]
[1723197700769,21.9647,157.56,157.5,6.3488]
[1723197700970,34.81,157.54,157.5,6.3491]
[1723197701218,65.0,157.53,157.5,6.3491]
[1723197701405,65.0,157.53,157.46,15.8768]
[1723197702086,65.0,157.53,157.5,6.3492]
[1723197702286,65.0,157.53,157.49,6.3495]
[1723197702493,34.81,157.52,157.49,6.3495]
[1723197702675,45.0,157.51,157.49,6.3495]
[1723197704575,45.0,157.51,157.5,6.3492]
[1723197705020,45.0,157.51,157.49,6.3495]
[1723197705781,20.0,157.53,157.5,6.3492]
[1723197706017,20.0,157.53,157.51,6.3486]
[1723197706603,20.0,157.53,157.5,6.3491]
[1723197707314,79.81,157.52,157.48,22.224]
[1723197708493,79.81,157.52,157.48,15.8741]
[1723197708699,20.0,157.53,157.48,15.8741]
[1723197708908,45.0,157.52,157.49,6.3495]
[1723197709084,34.81,157.54,157.53,6.3479]
[1723197709280,6.2475,157.58,157.47,15.8756]
[1723197709485,6.348,157.53,157.48,6.3496]
[1723197709795,6.3485,157.52,157.47,22.2256]
[1723197710110,6.348,157.53,157.47,15.8756]
[1723197710314,45.0,157.52,157.47,15.8756]
[1723197710616,79.81,157.52,157.47,15.8756]
[1723197710912,34.81,157.54,157.49,15.8732]
[1723197711209,45.0,157.53,157.49,15.8732]
[1723197711716,45.0,157.53,157.49,22.2224]
[1723197712286,45.0,157.53,157.49,15.8732]
[1723197712287,34.81,157.52,157.49,15.8732]
[1723197712703,45.0,157.51,157.49,15.8732]
[1723197713221,45.0,157.51,157.49,22.2227]
[1723197713515,34.81,157.54,157.49,15.8732]
[1723197713700,45.0,157.53,157.49,15.8732]
[1723197713899,45.0,157.53,157.46,1.26976769]
[1723197713900,34.81,157.54,157.52,6.3483]
[1723197714201,34.81,157.54,157.51,22.2201]
[1723197715001,34.81,157.54,157.52,6.3483]
[1723197715208,45.0,157.53,157.52,6.3483]
[1723197715518,0.6342763,157.53,157.52,6.3483]
[1723197716600,0.6342763,157.53,157.51,15.8714]
[1723197716813,72.7442763,157.53,157.5,6.3489]
[1723197717404,72.7442763,157.53,157.51,6.3487]
[1723197718105,72.7442763,157.53,157.48,15.8745]
[1723197718106,27.11,157.52,157.48,15.8745]
[1723197718425,72.11,157.51,157.49,6.3496]
[1723197718624,27.11,157.51,157.49,6.3496]
[1723197718795,27.11,157.5,157.49,6.3496]
[1723197720192,27.11,157.51,157.5,6.349]
[1723197720408,72.11,157.51,157.5,6.349]
[1723197720603,72.11,157.51,157.48,15.8745]
[1723197720821,27.11,157.49,157.45,15.8779]
[1723197721036,27.11,157.47,157.45,22.2287]
[1723197721325,72.11,157.46,157.45,15.8779]
[1723197721622,27.11,157.46,157.45,22.2291]
[1723197721920,27.11,157.5,157.49,6.3492]
[1723197722117,0.6342763,157.53,157.45,31.7552]
[1723197722118,0.6342763,157.53,157.46,1.26980598]
[1723197722327,27.7442763,157.53,157.52,6.3484]
[1723197722631,27.7442763,157.53,157.51,15.8714]
[1723197722794,27.11,157.52,157.51,15.8714]
[1723197723497,72.11,157.52,157.51,15.8714]
[1723197724397,72.11,157.52,157.48,15.8745]
[1723197724603,27.11,157.5,157.48,15.8745]
[1723197724804,27.11,157.5,157.48,22.2244]
[1723197725114,27.11,157.5,157.49,6.3496]
[1723197725511,27.11,157.51,157.5,22.2213]
[1723197725718,72.11,157.52,157.51,6.3488]
[1723197725916,27.11,157.52,157.51,6.3488]
[1723197726115,0.6342763,157.53,157.52,6.3484]
[1723197726304,45.6342763,157.53,157.52,6.3484]
[1723197726924,72.7442763,157.53,157.51,6.3487]
[1723197727130,27.11,157.52,157.5,15.8721]
[1723197727313,72.11,157.51,157.47,15.8759]
[1723197727530,72.11,157.51,157.5,6.3491]
[1723197727531,27.11,157.51,157.5,6.3491]
[1723197727823,0.6342763,157.53,157.45,31.7555]
[1723197727824,27.7442763,157.53,157.52,6.3484]
[1723197728000,0.6342763,157.53,157.52,6.3484]
[1723197729223,0.6342763,157.53,157.52,34.72775033]
[1723197729727,0.6342763,157.53,157.52,6.3484]
[1723197730526,27.7442763,157.53,157.51,15.8714]
[1723197730707,27.11,157.52,157.5,6.3488]
[1723197730897,27.11,157.51,157.5,6.3488]
[1723197731103,27.7442763,157.53,157.52,6.3484]
[1723197731299,72.7442763,157.53,157.5,15.8722]
[1723197731524,27.11,157.51,157.47,15.8756]
[1723197731720,27.11,157.48,157.43,6.4213]
[1723197731913,27.11,157.47,157.42,31.7615]
[1723197732332,27.11,157.46,157.4,15.3424]
[1723197732533,27.11,157.52,157.4,15.3424]
[1723197732534,27.11,157.45,157.4,15.3424]
[1723197732839,27.11,157.42,157.41,15.8817]
[1723197733035,27.11,157.42,157.38,15.8849]
[1723197733236,27.11,157.41,157.38,15.8849]
[1723197733709,34.92,157.42,157.39,6.3533]
[1723197734629,34.92,157.4,157.35,15.888]
[1723197734942,34.92,157.4,157.34,31.7781]
[1723197734943,45.0,157.41,157.38,15.885]
[1723197735237,34.92,157.42,157.38,15.885]
[1723197735402,0.6342763,157.39,157.38,22.239]
[1723197737409,0.6342763,157.39,157.36,6.3547]
[1723197737732,0.6342763,157.39,157.38,6.354]
[1723197737908,0.6342763,157.39,157.37,15.8853]
[1723197738107,0.6342763,157.39,157.37,22.2395]
[1723197738326,0.6342763,157.39,157.38,6.354]
[1723197738535,0.6342763,157.39,157.37,22.2397]
[1723197738718,35.5542763,157.39,157.34,15.8889]
[1723197738926,45.0,157.38,157.34,15.8889]
[1723197739917,45.0,157.38,157.35,6.3552]
[1723197740548,34.92,157.37,157.34,15.8889]
[1723197740727,45.0,157.36,157.34,22.2445]
[1723197740927,45.0,157.36,157.34,15.8889]
[1723197741131,45.0,157.36,157.35,6.3552]
[1723197741319,35.5542763,157.39,157.37,6.3543]
[1723197741521,65.0,157.38,157.34,22.2445]
[1723197741860,34.92,157.37,157.34,6.3553]
[1723197742040,34.92,157.37,157.35,6.355]
[1723197742221,34.92,157.37,157.36,6.3548]
[1723197742426,79.92,157.37,157.33,15.8894]
[1723197742628,34.92,157.37,157.34,6.3553]
[1723197742826,45.0,157.36,157.34,6.3553]
[1723197743629,45.0,157.36,157.35,6.3552]
[1723197744025,45.0,157.36,157.34,6.3556]
[1723197744530,45.0,157.36,157.35,6.3552]
[1723197744733,20.0,157.38,157.36,6.3544]
[1723197744935,0.6342763,157.39,157.33,31.7794]
[1723197745147,0.6342763,157.39,157.38,22.2391]
[1723197745450,35.5542763,157.39,157.35,15.8879]
[1723197745653,34.92,157.37,157.35,15.8879]
[1723197745949,34.92,157.37,157.33,6.3559]
[1723197746323,45.0,157.36,157.33,6.3559]
[1723197746658,45.0,157.36,157.34,6.3556]
[1723197748128,45.0,157.36,157.33,6.356]
[1723197748451,45.0,157.36,157.31,0.8177295]
[1723197748452,51.76249838,157.35,157.31,0.8177295]
[1723197748749,41.2764,157.32,157.26,22.2553]
[1723197748945,34.92,157.28,157.27,6.3584]
[1723197749517,34.92,157.28,157.26,22.2556]
[1723197749746,45.0,157.27,157.26,22.2556]
[1723197751133,45.0,157.27,157.23,15.8999]
[1723197751334,45.0,157.27,157.24,6.3593]
[1723197752135,45.0,157.27,157.25,6.3591]
[1723197752334,45.0,157.27,157.26,22.256]
[1723197752544,34.92,157.3,157.28,6.358]
[1723197752728,45.0,157.29,157.28,6.358]
[1723197752924,34.92,157.32,157.28,15.8945]
[1723197753129,34.92,157.32,157.3,6.3571]
[1723197753856,34.92,157.32,157.26,6.3585]
[1723197754159,34.92,157.3,157.26,6.3585]
[1723197754367,16.84320864,157.35,157.22,15.9011]
[1723197754368,34.92,157.28,157.22,15.9011]
[1723197754664,45.0,157.27,157.26,6.3588]
[1723197754851,6.3572,157.31,157.26,6.3588]
[1723197755049,99.92,157.3,157.26,6.3588]
[1723197755733,106.2773,157.3,157.25,6.3592]
[1723197756060,106.2773,157.3,157.26,6.3588]
[1723197756364,99.92,157.3,157.26,6.3588]
[1723197756542,106.2773,157.3,157.25,6.3592]
[1723197757680,106.2773,157.3,157.24,15.8986]
[1723197758165,106.2773,157.3,157.25,6.3592]
[1723197758339,34.92,157.28,157.24,22.2582]
[1723197758531,51.3585,157.27,157.23,6.36]
[1723197758734,45.0,157.27,157.24,6.3596]
[1723197758934,45.0,157.27,157.23,22.2597]
[1723197759857,34.92,157.26,157.22,6.3604]
[1723197760154,16.1098,157.33,157.22,31.8021]
[1723197760364,51.0298,157.33,157.29,15.8935]
[1723197760943,16.1098,157.33,157.32,6.3564]
[1723197761147,6.293,157.36,157.31,15.8914]
[1723197761365,12.648,157.36,157.31,22.2481]
[1723197761564,12.648,157.36,157.31,15.8914]
[1723197761565,6.3553,157.35,157.31,15.8914]
[1723197761763,12.6479,157.36,157.31,22.2481]
[1723197762257,41.2753,157.35,157.31,15.8914]
[1723197762663,45.0,157.34,157.31,15.8914]
[1723197762961,45.0,157.34,157.26,31.7939]
[1723197762962,45.0,157.34,157.28,15.8947]
[1723197763165,20.0,157.33,157.28,15.8947]
[1723197763368,51.3567,157.32,157.28,15.8947]
[1723197763660,20.0,157.31,157.28,15.8947]
[1723197763850,45.0,157.3,157.28,15.8947]
[1723197764042,45.0,157.3,157.28,22.2525]
[1723197765458,45.0,157.3,157.25,15.8982]
[1723197765662,45.0,157.3,157.26,6.3588]
[1723197765871,51.3573,157.3,157.26,6.3588]
[1723197766036,51.3573,157.3,157.25,22.2574]
[1723197766242,45.0,157.3,157.27,6.3584]
[1723197766542,79.92,157.3,157.27,6.3584]
[1723197767155,79.92,157.3,157.26,6.3587]
[1723197767440,79.92,157.3,157.26,6.3588]
[1723197768559,20.0,157.29,157.23,1.27165609]
[1723197768760,20.0,157.29,157.27,22.2543]
[1723197768976,20.0,157.29,157.25,6.3589]
[1723197769279,79.92,157.28,157.24,22.2586]
[1723197769483,86.2781,157.28,157.24,22.2586]
[1723197769850,86.2781,157.28,157.24,15.899]
[1723197770182,41.2789,157.26,157.21,22.2628]
[1723197770491,45.0,157.25,157.22,6.3602]
[1723197771158,45.0,157.25,157.21,15.902]
[1723197771674,45.0,157.25,157.24,6.3597]
[1723197772363,45.0,157.25,157.23,6.36]
[1723197773557,45.0,157.25,157.24,6.3597]
[1723197773762,47.21,157.27,157.25,6.3593]
[1723197773966,47.21,157.27,157.24,6.3595]
[1723197774159,72.21,157.26,157.23,15.8996]
[1723197774565,27.21,157.24,157.2,15.9028]
[1723197774763,27.21,157.24,157.21,6.3608]
[1723197775056,27.21,157.24,157.22,6.3604]
[1723197775256,47.21,157.27,157.25,6.3593]
[1723197775659,27.21,157.26,157.22,15.9003]
[1723197775864,27.21,157.26,157.23,6.3601]